Cogmind - Beta 13 @@@ ROGUE MODE // 2024.04.01 @ 21:13:55 Player: sweetanimebabe Result: Destroyed by as-07640 with Assembled Heavy Rifle Performance ------------- Evolutions (1) 500 Regions Visited (3) 600 Robots Destroyed (2) 10 Value Destroyed (81) 81 Prototype IDs (1) 20 Alien Tech Used (0) 0 Bonus (0) 0 TOTAL SCORE: 1211 Bonus ------- None Cogmind --------- Core Integrity 0/400 Matter 206/500 Energy 45/100 System Corruption 0% Temperature Hot (241) Movement Core (150) Ox2 Location -9/Mines Parts ------- > --- POWER (1) -------- (None) > --- PROPULSION (2) --- (None) > --- UTILITY (4) ------ Small Storage Unit High-capacity Matter Pod > --- WEAPON (2) ------- (None) > --- INVENTORY (8) ---- Ion Engine Ion Engine Medium Storage Unit EM Shotgun EM Shotgun Medium Laser Improved Assault Rifle Peak State ------------ > --- POWER ------------ Light Nuclear Core > --- PROPULSION ------- Aluminum Leg Aluminum Leg > --- UTILITY ---------- Small Storage Unit Medium Storage Unit High-capacity Matter Pod > --- WEAPON ----------- Medium Laser Improved Assault Rifle > --- INVENTORY -------- Ion Engine Ion Engine Aluminum Leg EM Shotgun EM Shotgun EM Shotgun EM Shotgun [Rating: 13] Favorites ----------- Power Light Nuclear Core Engine Ion Engine Power Core Light Nuclear Core Propulsion Aluminum Leg Leg Aluminum Leg Utility Small Storage Unit Storage Small Storage Unit Weapon Small Laser Energy Gun Small Laser Ballistic Gun Light Assault Rifle Build | -11 -10 -9 -9 ------- Run | Yrd Mat Mat Min Slots Evolved 2 | . . 2 . Power . | . . . . Propulsion . | . . . . Utility 2 | . . 2 . Weapon . | . . . . Parts Attached 23 | 6 6 8 3 Power 2 | 1 1 . . Engine 1 | 1 . . . Core 1 | . 1 . . Reactor . | . . . . Propulsion 4 | 2 1 . 1 Treads . | . . . . Leg 4 | 2 1 . 1 Wheel . | . . . . Hover . | . . . . Flight . | . . . . Utility 9 | 1 3 5 . Device . | . . . . Storage 9 | 1 3 5 . Processor . | . . . . Hackware . | . . . . Protection . | . . . . Artifact . | . . . . Weapon 8 | 2 1 3 2 Energy Gun 6 | 1 1 2 2 Energy Cannon . | . . . . Ballistic Gun 2 | 1 . 1 . Ballistic Cannon . | . . . . Launcher . | . . . . Special Weapon . | . . . . Impact Weapon . | . . . . Slashing Weapon . | . . . . Piercing Weapon . | . . . . Special Melee Weapon . | . . . . Unidentified Prototypes 1 | . . 1 . Parts Lost 7 | . 1 . 6 Power 1 | . . . 1 Propulsion 3 | . . . 3 Utility . | . . . . Weapon 3 | . 1 . 2 Highest Loss Streak 6 | . 1 . 6 To Critical Strikes . | . . . . Average Slot Usage (%) 89 | . 98 77 63 Engine 5 | . 9 . . Core 6 | . 4 11 8 Leg 25 | . 28 22 16 Storage 25 | . 27 22 22 Energy Gun 16 | . 19 11 8 Ballistic Gun 8 | . 8 10 8 Naked Turns . | . . . . Heaviest Build 51 | 12 51 19 19 Greatest Support 20 | 20 20 20 20 Greatest Overweight (x) 2 | . 2 . . Average Overweight (x) . | . . . . Largest Inventory Capacity 20 | 8 20 20 8 Average Capacity 8 | 6 8 8 8 Most Carried 8 | 1 6 8 8 Average Carried 4 | . 3 6 7 Final Capacity 8 | 8 8 8 8 Final Carried 8 | 1 6 8 7 Class Distribution -------------------- 100% | Mutant Dominant Class ---------------- Mutant | -10/Materials Mutant | -9/Materials Mutant | -9/Mines Resources | -11 -10 -9 -9 ----------- Run | Yrd Mat Mat Min Matter Collected 310 | 235 75 . . Remotely . | . . . . Salvage Created 93 | . 75 . 18 Parts 4 | . 4 . . Haulers Intercepted . | . . . . Recyclers Shooed . | . . . . Parts Field Recycled . | . . . . Retrieved Matter . | . . . . Parts Self-Destructed . | . . . . Prevented . | . . . . Kills | -11 -10 -9 -9 ------- Run | Yrd Mat Mat Min Combat Hostiles Destroyed 3 | . 2 . 1 Guns 3 | . 2 . 1 Classes Destroyed 2 | . 1 . 1 Grunt 2 | . 2 . . Assembled 1 | . . . 1 Best Kill Streak 2 | . 2 . 1 Combat Bots Only 2 | . 2 . 1 Max Kills in Single Turn 1 | . 1 . 1 Gunslinging . | . . . . Exploded . | . . . . Melee . | . . . . Uniques/NPCs Destroyed . | . . . . Combat | -11 -10 -9 -9 -------- Run | Yrd Mat Mat Min Hostile Shots Fired 92 | . 28 . 64 Missed 22 | . 9 . 13 Damage Taken 1187 | . 260 . 927 Core 441 | . 39 . 402 Absorbed by Shields . | . . . . Core Remaining (%) 92 | 100 84 . . Volleys Fired 15 | . 10 . 5 Largest 2 | . 2 . 2 Hottest 90 | . 90 . 90 Shots Fired 28 | . 18 . 10 Gun 28 | . 18 . 10 Cannon . | . . . . Launcher . | . . . . Special . | . . . . Kinetic 8 | . 6 . 2 Thermal 14 | . 12 . 2 Explosive . | . . . . Electromagnetic 6 | . . . 6 Robot Hit Streak 6 | . 4 . 6 Robot Miss Streak 5 | . 5 . 2 Penetration Max . | . . . . Secondary Targets 1 | . 1 . . Max Gunslinging Chain 1 | . 1 . . Shots Hit Robots 17 | . 10 . 7 Core Hits 14 | . 6 . 8 Critical Kills . | . . . . Critical Parts Destroyed . | . . . . Critical Strikes . | . . . . Melee Attacks . | . . . . Impact . | . . . . Slashing . | . . . . Piercing . | . . . . Sneak Attacks . | . . . . Combat Hostiles . | . . . . Follow-up Attacks . | . . . . Damage Inflicted 247 | . 106 . 141 Guns 246 | . 105 . 141 Cannons . | . . . . Explosions . | . . . . Melee . | . . . . Ramming 1 | . 1 . . Kinetic 61 | . 27 . 34 Thermal 90 | . 78 . 12 Explosive . | . . . . Electromagnetic 95 | . . . 95 Impact . | . . . . Slashing . | . . . . Piercing . | . . . . Highest Corruption . | . . . . Average Corruption . | . . . . Corruption Purged . | . . . . Corruption Blocked . | . . . . Overload Shots . | . . . . Overflow Damage . | . . . . Projectiles . | . . . . Explosions . | . . . . Melee . | . . . . Knockbacks . | . . . . Impact . | . . . . Kinetic . | . . . . Secondary . | . . . . Self-Inflicted Damage . | . . . . Shots . | . . . . Rammed . | . . . . Targets Rammed 1 | . 1 . . Kicked 1 | . 1 . . Crushed . | . . . . Highest Temperature 201 | . 66 . 201 Average Temperature 38 | . 22 . 62 Received Heat Transfer 547 | . 147 . 400 Siege Activations . | . . . . Robots Corrupted . | . . . . Combat Hostiles . | . . . . Parts Fried . | . . . . Impact Corruptions . | . . . . Robots Melted . | . . . . Combat Hostiles . | . . . . Parts Melted . | . . . . Heat Transferred 236 | . 199 . 37 Parts Sabotaged . | . . . . Parts Stolen . | . . . . Parts Stripped . | . . . . Power Chain Reactions . | . . . . Alert | -11 -10 -9 -9 ------- Run | Yrd Mat Mat Min Peak Influence 115 | . 115 15 5 Initial 5 | . . . 5 Average 29 | . 49 2 1 Maximum Alert Level . | . . . . Low Security (%) 100 | 100 100 100 100 Level 1 . | . . . . Level 2 . | . . . . Level 3 . | . . . . Level 4 . | . . . . Level 5 . | . . . . High Security . | . . . . Max Security . | . . . . Squads Dispatched . | . . . . Investigation . | . . . . Extermination . | . . . . Reinforcement . | . . . . Assault . | . . . . Garrison . | . . . . Intercept . | . . . . Searches Triggered . | . . . . Construction Impeded . | . . . . Haulers Reinforced . | . . . . Active Scanning Responses . | . . . . Cargo Convoy Interrupts . | . . . . Stealth | -11 -10 -9 -9 --------- Run | Yrd Mat Mat Min Distress Signals 2 | . 1 1 . Communications Jammed . | . . . . Distress Signals . | . . . . Times Spotted 22 | . 6 1 15 Peak Tracking Total 16 | . 3 2 16 Tactical Retreats 1 | . . . 1 Traps | -11 -10 -9 -9 ------- Run | Yrd Mat Mat Min Traps Triggered . | . . . . Indirectly . | . . . . Trap Hack Attempts . | . . . . Triggered . | . . . . Disarmed . | . . . . Reprogrammed . | . . . . Reused . | . . . . Traps Extracted . | . . . . Installed . | . . . . Triggered . | . . . . Machines | -11 -10 -9 -9 ---------- Run | Yrd Mat Mat Min Machines Disabled . | . . . . Max in Single Turn . | . . . . Machines Repaired . | . . . . Machines Dismantled . | . . . . Machines Sabotaged . | . . . . Overloaded Fab Kills . | . . . . Hacking | -11 -10 -9 -9 --------- Run | Yrd Mat Mat Min Machines Accessed . | . . . . Terminals . | . . . . Fabricators . | . . . . Repair Stations . | . . . . Recycling Units . | . . . . Scanalyzers . | . . . . Garrison Access . | . . . . Total Hacks . | . . . . Successful . | . . . . Failed . | . . . . Catastrophic . | . . . . Database Lockouts . | . . . . Manual . | . . . . Terminals . | . . . . Fabricators . | . . . . Repair Stations . | . . . . Recycling Units . | . . . . Scanalyzers . | . . . . Garrison Access . | . . . . Terminal Hacks . | . . . . Fabricator Hacks . | . . . . Repair Station Hacks . | . . . . Recycling Unit Hacks . | . . . . Scanalyzer . | . . . . Garrison Access Hacks . | . . . . Unauthorized Hacks . | . . . . Terminals . | . . . . Fabricators . | . . . . Repair Stations . | . . . . Recycling Units . | . . . . Scanalyzers . | . . . . Garrison Access . | . . . . Data Cores Recovered . | . . . . Used . | . . . . Hacking Detections . | . . . . Full Trace Events . | . . . . Feedback Events . | . . . . Feedback Blocked . | . . . . Robot Schematics Acquired . | . . . . Robots Built . | . . . . Authchips . | . . . . Time . | . . . . Total Robot Build Rating . | . . . . Part Schematics Acquired . | . . . . Parts Built . | . . . . Authchips . | . . . . Time . | . . . . Total Part Build Rating . | . . . . Parts Repaired . | . . . . Time . | . . . . Parts Recycled . | . . . . Recycled Matter . | . . . . Retrieved Matter . | . . . . Retrieved Components . | . . . . Parts Scanalyzed . | . . . . Part Schematics Acquired . | . . . . Parts Damaged . | . . . . Bothacking | -11 -10 -9 -9 ------------ Run | Yrd Mat Mat Min Used RIF Installer . | . . . . Robots Hacked . | . . . . Non-combat . | . . . . Combat . | . . . . Robot Hacks Applied . | . . . . Relay Couplers Released . | . . . . Fabnet Peak Effective % . | . . . . Robots Rewired . | . . . . Allies Hacked . | . . . . Hacks Repelled . | . . . . Allies | -11 -10 -9 -9 -------- Run | Yrd Mat Mat Min Total Allies . | . . . . Largest Group . | . . . . Highest-Rated Group . | . . . . Highest-Rated Ally . | . . . . Total Orders . | . . . . Ally Attacks . | . . . . Total Damage . | . . . . Kills . | . . . . Allies Corrupted . | . . . . Allies Melted . | . . . . Intel | -11 -10 -9 -9 ------- Run | Yrd Mat Mat Min Robot Analysis Total . | . . . . Derelict Logs Recovered . | . . . . Drone Launches . | . . . . Drone Recoveries . | . . . . Exploration | -11 -10 -9 -9 ------------- Run | Yrd Mat Mat Min Turns Passed 770 | 70 445 223 32 Spaces Moved 543 | 54 308 170 11 Core 7 | 7 . . . Treads . | . . . . Legs 536 | 47 308 170 11 Wheels . | . . . . Hover . | . . . . Flight . | . . . . Fastest Speed 50 | 50 120 120 120 Average Speed 120 | 110 121 120 120 Slowest Speed 260 | 120 260 120 120 Overloaded Moves . | . . . . Propulsion Burnouts . | . . . . Robots Hopped . | . . . . Cave-ins Triggered . | . . . . Exploration Rate (%) 18 | 4 42 17 12 Regions Visited 3 Branch Regions 1 Pre-discovered Areas . | . . . . Known Exits Taken . | . . . . Unknown Exits Taken 3 | 1 1 1 . Scrap Searched . | . . . . Spaces Dug . | . . . . Terrain Destroyed . | . . . . Melee . | . . . . Projectile . | . . . . AOE . | . . . . Terrain Rammed . | . . . . Walls Destroyed . | . . . . Machines Disabled . | . . . . Actions | -11 -10 -9 -9 --------- Run | Yrd Mat Mat Min Total 630 | 61 360 190 19 Wait 26 | . 26 . . Move 540 | 53 307 169 11 Hop . | . . . . Pick Up 16 | 2 8 6 . Fast Attach 6 | 5 1 . . Attach 7 | 1 2 3 1 Detach 3 | . . 3 . Swap 10 | . 3 5 2 Drop 6 | . 2 4 . Fire 15 | . 10 . 5 Melee . | . . . . Ram . | . . . . Kick 1 | . 1 . . Crush . | . . . . Escape Stasis . | . . . . Rewire . | . . . . Trap . | . . . . Miscellaneous . | . . . . Route ------- -11/Scrapyard -10/Materials -9/Materials -9/Mines History --------- Turn | Location | Event 11 | -11/Scrapyard | Discovered new exit (range 15) 71 | -11/Scrapyard | Entered Materials 310 | -10/Materials | Build established: Mutant 498 | -10/Materials | Discovered new exit (range 11) 516 | -10/Materials | Entered another Materials area 516 | -9/Materials | Evolved 2 slots: Utility x2 712 | -9/Materials | Discovered new exit (range 16) 739 | -9/Materials | Entered Mines 740 | -9/Mines | Assembled infested the area 766 | -9/Mines | Core integrity fell below 50% 770 | -9/Mines | Core integrity fell below 20% 771 | -9/Mines | Destroyed by as-07640 with Assembled Heavy Rifle Last Messages --------------- Acquired EM Shotgun. W-16 Scout sends out distress signal. EXIT=FOUND Acquired Med. Storage Unit. LOCATION=UNKNOWN GOAL=ESCAPE Something is scanning the area. ALERT: Infestation in the mines, dispatching Demolisher response squad. Aluminum Leg destroyed. as-39794 destroyed. Knocked back. Critical hit (Burn: +80). as-48522 destroyed. Aluminum Leg destroyed. Lgt. Nuclear Core destroyed. Aluminum Leg destroyed. Knocked back. as-07095 destroyed. EM Shotgun destroyed. Map ----- +----------------------------------------------------+ | ????????????????????????????????? | | ????????????????????????????????? | | ????????????????????????????????? | | ????????????????????????????????? | | ????????????????????????????????? | | ????????????????????????????????? | | ????????????????????????????????? | | ????????????????????????????????? | | ????????????????????????????????? | | ????????????????????????????????? | | ????????????????????????????????? | | ????????????? ??????????????????? | | ???????????? ??????????????????? | | ???????????? #?????????????????? | | ???????????? ????????##???????? | | ???????????? ??????? ##??????? | | ????????????? ?????? #??????? | | ??????????? #????? #??????? | | ??????????? #??? #??????? | | ???????????? #?## #???????? | | ?????????????# ### #????????? | | ???????????### ## #?????????? | | ??????????## #?####?????? | | ??????????# #?## ##????? | | ??????????# ### aa #????? | | ??????????# a a@ #????? | | ??????????# """a a%aa##????? | | ?????????## """ % ##?????? | | ?????????# """ a ##??????? | | ?????????# % a #???????? | | ?????????# a #???????? | | ?????????# a #????? | | ?????????# #### #????? | | ????????# ##??##### #????? | | ???????# ## ##???????? #???? | | ???????## #?####?????????? ???? | | ????????###????????????????? #??? | | ???????????????????????????? #??? | | ?????????????????????????????#??? | | ????????????????????????????????? | | ????????????????????????????????? | | ????????????????????????????????? | | ????????????????????????????????? | | ????????????????????????????????? | | ????????????????????????????????? | | ????????????????????????????????? | | ????????????????????????????????? | | ????????????????????????????????? | | ????????????????????????????????? | | ????????????????????????????????? | +----------------------------------------------------+ Best States ------------- Heat Dissipation 28 Energy Generation 14 Energy Capacity 250 Matter Stores 312 Matter Capacity 500 Sight Range 16 Terrain Scan Density 10 Evasion (%) 55 Item Schematics ----------------- None Robot Schematics ------------------ None Fabricated ------------ Nothing Alien Tech Used ----------------- None Achievements -------------- None Challenges ------------ None Game ------ Seed SurveybotServoCanceller Manual? 0 Play Time 00:12:01 Cumulative 2.2 hours Start 2024.04.01 @ 21:02:13 End 2024.04.01 @ 21:13:55 Sessions 1 Manual Loads 0 Difficulty Rogue Special Mode None Game No. 5 Rogue 5 Adventurer 0 Explorer 0 Win Type - Total 0 Types 0/0/0/0/0/0/0/0/0 Lore% 0 Gallery% 7 Achievement% 5 Wizard Run 0 Options --------- Layout 1 ASCII 0 Keyboard 0 Movement Numpad Keybinds 0 Fullscreen 1 Font 32/SmallcapsGlow Map View 50x35 Zoom Use 0% Tactical HUD 0 Map Filters NONE Filters NONE Steam 1 RUN: 66c4f5e6-801c-4053-a7f1-35c159c8c107